[Event "GER-chT States Women 2022"]
[Site "Braunfels"]
[Date "2022.06.16"]
[Round "1.25"]
[White "Tuzi, Bruna"]
[Black "Wagner, Victoria"]
[Result "1-0"]
[ECO "B52"]
[WhiteElo "1999"]
[BlackElo "1806"]
[Annotator "TA"]
[PlyCount "75"]
[EventDate "2022.06.15"]
[EventType "swiss"]
[EventCountry "GER"]
[SourceTitle "playchess.com"]
[Source "ChessBase"]
[SourceQuality "1"]
[TimeControl "40/5400+30:1800+30"]

{[%evp 24,75,45,34,44,49,45,31,31,25,30,34,31,38,31,16,74,54,36,30,26,-4,19,25,166,156,272,265,305,287,362,380,681,657,768,494,542,540,537,535,534,534,624,614,1029,1018,1034,987,1347,1347,993,983,1488,1398]} 1. e4 {[%emt 0:00:04]} c5 {[%emt 0:00:09]} 2. Nf3 {[%emt 0:00:12]} d6 {[%emt 0:00:07]} 3. Bb5+ {[%emt 0:00:37]} Bd7 {[%emt 0:00:59]} 4. Bxd7+ {[%emt 0:01:10]} Qxd7 {[%emt 0:00:08]} 5. c4 {[%emt 0:01:26]} Nc6 {[%emt 0:01:04]} 6. O-O {[%emt 0:01:23]} g6 {[%emt 0:04:20]} 7. d4 {[%emt 0:02:18]} cxd4 {[%emt 0:06:38]} 8. Nxd4 {[%emt 0:00:09]} Bg7 {[%emt 0:00:12]} 9. Be3 {[%emt 0:01:14]} Nf6 {[%emt 0:05:49]} 10. f3 {[%emt 0:04:09]} O-O {[%emt 0:15:01]} 11. Nc3 {[%emt 0:06:20]} Rfc8 {[%emt 0:07:43]} 12. b3 {[%emt 0:04:11]} e6 {[%emt 0:12:48]} 13. Rc1 {[%emt 0:05:59]} Rd8 {[%emt 0:06:28] [#] B52: Sicilian: Moscow Variation with 3...Bd7.} 14. Re1 $146 {[%emt 0:14:01]} ({Predecessor:} 14. Nxc6 bxc6 15. Qe2 d5 16. e5 Ne8 17. f4 f6 18. Bf2 Nc7 19. Rfd1 fxe5 20. fxe5 Rf8 21. Na4 {1-0 (46) Krnan,T (2408)-Sejkora,V (2144) Tatranske Zruby 2019}) 14... d5 {[%emt 0:13:59]} 15. cxd5 {[%emt 0:01:53]} (15. Nxc6 {looks sharper.} Qxc6 16. cxd5 exd5 17. Nxd5 Nxd5 18. Rxc6 Nxe3 19. Qc1) 15... exd5 {[%emt 0:00:52] White is slightly better.} 16. Nxc6 {[%emt 0:10:20]} bxc6 {[%emt 0:00:29]} 17. e5 {[%emt 0:00:30]} Ne8 {[%emt 0:04:22]} 18. Bg5 {[%emt 0:00:51]} f6 {[%emt 0:02:33]} 19. e6 {[%emt 0:00:28]} Qe7 {[%emt 0:00:46]} (19... Qc7 $11 {remains equal.} 20. e7 Rd7) 20. Bf4 {[%emt 0:00:24][%cal Bg5f4,Bf4g3,Bg3f2][%mdl 32] White is much more active. The black rooks are badly placed.} Rac8 {[%emt 0:03:49]} 21. Na4 {[%emt 0:01:05]} c5 {[%emt 0:00:40]} 22. b4 {[%emt 0:02:21][%cal Bb3b4,Bb4b5][%mdl 32]} g5 {[%emt 0:05:50]} 23. Bg3 {[%emt 0:00:20][%cal Ra4c5]} f5 {[%emt 0:01:11] This move loses the game for Black.} (23... cxb4 $11 24. Rxc8 Rxc8) 24. Nxc5 $18 {[%emt 0:02:33]} f4 {[%emt 0:00:41]} (24... a5 $16) 25. Bf2 {[%emt 0:00:07]} Rc6 {[%emt 0:00:48]} 26. b5 {[%emt 0:03:10]} Rcd6 {[%emt 0:01:30]} 27. Nd7 {[%emt 0:02:39]} Rxe6 $2 {[%emt 0:02:26] [#]} (27... d4 28. Qd3 Kh8) 28. Qxd5 {[%emt 0:00:19] White is clearly winning.} Rxd7 {[%emt 0:00:29]} 29. Qxe6+ {[%emt 0:00:15]} Qxe6 {[%emt 0:00:05]} 30. Rxe6 {[%emt 0:00:09]} Nc7 {[%emt 0:00:33]} 31. Rec6 {[%emt 0:06:58]} Nxb5 {[%emt 0:00:17]} 32. Kf1 {[%emt 0:00:53]} h6 {[%emt 0:01:37]} 33. a4 {[%emt 0:00:21]} Nd4 {[%emt 0:01:16]} 34. Rc8+ {[%emt 0:00:19]} Kh7 {[%emt 0:00:24]} 35. R8c7 {[%emt 0:00:25]} Rd8 {[%emt 0:01:03]} 36. Bxd4 {[%emt 0:00:23]} Rxd4 {[%emt 0:00:09]} 37. Rxa7 {[%emt 0:00:09] [#] Rcc7 is the strong threat.} Kg8 {[%emt 0:01:00]} 38. Rc8+ {[%emt 0:00:08] Weighted Error Value: White=0.18 (very precise) /Black=0.63} 1-0

[Event "GER-chT States Women 2022"]
[Site "Braunfels"]
[Date "2022.06.16"]
[Round "1.26"]
[White "Albayrak, Nese Pinar"]
[Black "Bluebaum, Johanna"]
[Result "1-0"]
[ECO "C06"]
[WhiteElo "1683"]
[BlackElo "2049"]
[Annotator "NA RC"]
[PlyCount "70"]
[EventDate "2022.06.15"]
[EventType "swiss"]
[EventCountry "GER"]
[SourceTitle "playchess.com"]
[Source "ChessBase"]
[SourceQuality "1"]
[TimeControl "40/5400+30:1800+30"]

1. e4 {[%emt 0:00:03]} e6 {[%emt 0:00:05]} 2. d4 {[%emt 0:00:05]} d5 {[%emt 0:00:06]} 3. Nd2 {[%emt 0:00:07]} Nf6 {[%emt 0:00:10]} 4. e5 {[%emt 0:00:05]} Nfd7 {[%emt 0:00:06]} 5. Bd3 {[%emt 0:00:06]} c5 {[%emt 0:00:11]} 6. c3 {[%emt 0:00:15]} Nc6 {[%emt 0:00:40]} 7. Ne2 {[%emt 0:00:17]} cxd4 {[%emt 0:02:54]} 8. cxd4 {[%emt 0:00:10]} Qb6 {[%emt 0:00:28]} 9. Nf3 {[%emt 0:00:20]} Be7 {[%emt 0:02:53]} 10. O-O {[%emt 0:02:08]} f6 {[%emt 0:07:53]} 11. exf6 {[%emt 0:01:51]} Nxf6 {[%emt 0:00:28]} 12. Re1 {[%emt 0:05:40]} O-O {[%emt 0:05:46]} 13. Bf4 {[%emt 0:26:19]} Ne4 {[%emt 0:09:27]} 14. Qc1 {[%emt 0:09:41]} Nb4 {[%emt 0:02:19]} 15. Bb1 {[%emt 0:04:28]} Bd7 {[%emt 0:02:14]} 16. Nc3 {[%emt 0:05:25]} Rac8 {[%emt 0:03:20]} 17. Qe3 {[%emt 0:04:21]} Nxc3 {[%emt 0:16:22]} 18. bxc3 {[%emt 0:00:11]} Rxc3 {[%emt 0:10:59]} 19. Qxc3 {[%emt 0:06:43]} Rxf4 {[%emt 0:00:08]} 20. Ne5 {[%emt 0:05:32]} Bb5 {[%emt 0:03:26]} 21. a3 {[%emt 0:10:31]} Nc6 {[%emt 0:05:56]} 22. Qh3 {[%emt 0:03:01]} Nxe5 {[%emt 0:04:22]} 23. Qxh7+ {[%emt 0:00:29]} Kf7 {[%emt 0:02:32]} 24. Qh5+ {[%emt 0:05:04]} g6 {[%emt 0:03:35]} 25. Qh7+ {[%emt 0:02:35]} Ke8 {[%emt 0:01:14]} 26. Qh8+ {[%emt 0:00:10]} Rf8 {[%emt 0:04:37]} 27. Qxe5 {[%emt 0:00:06]} Kd7 {[%emt 0:01:18]} 28. Qg7 {[%emt 0:05:25]} g5 {[%emt 0:04:08]} 29. Bg6 {[%emt 0:01:01]} Rf6 {[%emt 0:03:55]} 30. Bh5 {[%emt 0:00:12]} Qxd4 {[%emt 0:00:25]} 31. Bf3 {[%emt 0:00:09]} Ba4 {[%emt 0:02:36]} 32. Rab1 {[%emt 0:01:06]} b5 {[%emt 0:00:17]} 33. Re3 {[%emt 0:02:04]} Bc2 {[%emt 0:00:56]} 34. Rbe1 {[%emt 0:00:07]} Bf5 {[%emt 0:00:49]} 35. Rd1 {[%emt 0:00:18]} Qa4 1-0

[Event "GER-chT States Women 2022"]
[Site "Braunfels"]
[Date "2022.06.16"]
[Round "1.27"]
[White "Barpiyeva, Gulsana"]
[Black "Pavlov, Liliane"]
[Result "1-0"]
[ECO "A56"]
[WhiteElo "2016"]
[BlackElo "1742"]
[Annotator "NA RC"]
[PlyCount "101"]
[EventDate "2022.06.15"]
[EventType "swiss"]
[EventCountry "GER"]
[SourceTitle "playchess.com"]
[Source "ChessBase"]
[SourceQuality "1"]
[TimeControl "40/5400+30:1800+30"]

1. d4 {[%emt 0:00:05]} Nf6 {[%emt 0:00:14]} 2. c4 {[%emt 0:00:11]} c5 {[%emt 0:00:10]} 3. Nf3 {[%emt 0:01:04]} cxd4 {[%emt 0:00:57]} 4. Nxd4 {[%emt 0:00:17]} a6 {[%emt 0:02:32]} 5. Nc3 {[%emt 0:04:41]} e5 {[%emt 0:04:41]} 6. Nf3 {[%emt 0:01:44]} Nc6 {[%emt 0:02:12]} 7. e3 {[%emt 0:05:46]} d6 {[%emt 0:04:44]} 8. Be2 {[%emt 0:01:36]} Be7 {[%emt 0:00:56]} 9. O-O {[%emt 0:01:22]} O-O {[%emt 0:00:16]} 10. a3 {[%emt 0:01:21]} h6 {[%emt 0:01:37]} 11. b4 {[%emt 0:04:51]} Be6 {[%emt 0:03:42]} 12. Nd5 {[%emt 0:02:11]} Rc8 {[%emt 0:04:05]} 13. Bb2 {[%emt 0:02:52]} Nd7 {[%emt 0:06:43]} 14. Qd2 {[%emt 0:08:11]} e4 {[%emt 0:09:37]} 15. Nxe7+ {[%emt 0:06:11]} Qxe7 {[%emt 0:01:25]} 16. Nd4 {[%emt 0:00:22]} Nce5 {[%emt 0:02:31]} 17. Nxe6 {[%emt 0:04:58]} Qxe6 {[%emt 0:03:04]} 18. Qd4 {[%emt 0:03:02]} f5 {[%emt 0:11:13]} 19. Rfd1 {[%emt 0:06:31]} Rf6 {[%emt 0:02:10]} 20. Rac1 {[%emt 0:02:41]} Rg6 {[%emt 0:03:20]} 21. Kf1 {[%emt 0:04:09]} Rf8 {[%emt 0:04:02]} 22. c5 {[%emt 0:04:21]} dxc5 {[%emt 0:03:21]} 23. bxc5 {[%emt 0:00:15]} Qe7 {[%emt 0:10:37]} 24. Qd5+ {[%emt 0:07:21]} Kh7 {[%emt 0:01:19]} 25. g3 {[%emt 0:04:26]} Rc6 {[%emt 0:04:09]} 26. Kg2 {[%emt 0:05:20]} Re8 {[%emt 0:03:53]} 27. Bd4 {[%emt 0:06:09]} Nf6 {[%emt 0:01:20]} 28. Qb3 {[%emt 0:01:45]} g5 {[%emt 0:01:16]} 29. Bxe5 {[%emt 0:01:20]} Qxe5 {[%emt 0:00:15]} 30. Qxb7+ {[%emt 0:00:49]} Rc7 {[%emt 0:00:14]} 31. Qxa6 {[%emt 0:01:50]} Re6 {[%emt 0:02:31]} 32. Qc4 {[%emt 0:01:19]} Rec6 {[%emt 0:01:25]} 33. Qd4 {[%emt 0:02:05]} Qe7 {[%emt 0:01:17]} 34. a4 {[%emt 0:02:58]} Rxc5 {[%emt 0:01:32]} 35. Rxc5 {[%emt 0:00:10]} Rxc5 {[%emt 0:00:06]} 36. Qd6 {[%emt 0:01:04]} Qxd6 {[%emt 0:00:19]} 37. Rxd6 {[%emt 0:00:03]} Nd5 {[%emt 0:00:33]} 38. Bb5 {[%emt 0:01:26]} Nc3 {[%emt 0:01:17]} 39. Rc6 {[%emt 0:00:45]} Rxb5 {[%emt 0:01:25]} 40. axb5 {[%emt 0:00:44]} Nxb5 {[%emt 0:00:14]} 41. Rc5 {[%emt 0:31:20]} Nd6 {[%emt 0:30:05]} 42. Rd5 {[%emt 0:00:17]} Nf7 {[%emt 0:00:10]} 43. Rxf5 {[%emt 0:00:13]} Kg6 {[%emt 0:00:02]} 44. Ra5 {[%emt 0:00:32]} g4 {[%emt 0:00:45]} 45. h4 {[%emt 0:01:47]} Kf6 {[%emt 0:00:56]} 46. Kf1 {[%emt 0:00:00]} Ne5 {[%emt 0:00:00]} 47. Ra6+ {[%emt 0:00:00]} Kg7 {[%emt 0:00:00]} 48. Re6 {[%emt 0:00:00]} Nf3 {[%emt 0:00:00]} 49. Ke2 {[%emt 0:00:00]} Ng1+ {[%emt 0:00:00]} 50. Kd2 {[%emt 0:00:00]} Nh3 {[%emt 0:00:00]} 51. Ke1 {[%emt 0:00:00]} 1-0

[Event "GER-chT States Women 2022"]
[Site "Braunfels"]
[Date "2022.06.16"]
[Round "1.28"]
[White "Prinzen, Siri Marleen"]
[Black "Buchholz, Maja"]
[Result "1-0"]
[ECO "D00"]
[WhiteElo "1744"]
[BlackElo "1945"]
[Annotator "TA"]
[PlyCount "97"]
[EventDate "2022.06.15"]
[EventType "swiss"]
[EventCountry "GER"]
[SourceTitle "playchess.com"]
[Source "ChessBase"]
[SourceQuality "1"]
[TimeControl "40/5400+30:1800+30"]

{[%evp 9,96,-14,-12,-29,-14,-25,-16,-40,-17,-23,53,61,44,46,50,34,44,0,163,144,239,234,247,136,130,148,141,150,181,175,174,165,237,238,287,280,258,170,187,68,300,240,264,238,221,185,385,376,362,328,326,320,331,295,331,325,315,299,381,366,380,202,470,468,441,193,754,739,839,786,1266,1526,1281,1281,4810,4722,1043,675,29961,29963,29991,29992,29996,29997,29997,695,29998,29999,29999]} 1. d4 {[%emt 0:00:01]} d5 {[%emt 0:00:08]} 2. Bf4 {[%emt 0:00:05]} Nf6 {[%emt 0:00:06]} 3. e3 {[%emt 0:00:05]} c5 {[%emt 0:00:11]} 4. Nc3 {[%emt 0:00:48]} a6 {[%emt 0:01:55]} 5. Nf3 {[%emt 0:00:46]} e6 {[%emt 0:00:13]} 6. Ne5 {[%emt 0:02:12] D00: 1 d4 d5: Unusual lines.} Bd6 {[%emt 0:00:34]} 7. Bd3 {[%emt 0:01:13]} Qc7 {[%emt 0:00:41] [#]} 8. Bg3 $146 {[%emt 0:01:58] The position is equal.} ({Predecessor:} 8. O-O Nc6 9. Nxc6 Bxf4 10. exf4 bxc6 11. dxc5 Qxf4 12. Re1 Ng4 13. Qf3 Qxh2+ 14. Kf1 {0-1 (51) Buksa,N (2419)-Mekhitarian,K (2554) Chess.com INT 2021}) 8... Nc6 {[%emt 0:01:59]} 9. Nxc6 {[%emt 0:03:54]} bxc6 {[%emt 0:05:20]} (9... Qxc6 $11 10. Qf3 O-O) 10. dxc5 $14 {[%emt 0:04:05]} Bxg3 {[%emt 0:00:28]} 11. hxg3 {[%emt 0:00:09]} Qa5 {[%emt 0:00:20]} 12. a3 {[%emt 0:02:59]} Qxc5 {[%emt 0:00:50]} 13. e4 {[%emt 0:02:58][%cal Be3e4,Be4e5][%mdl 32]} Bd7 $2 {[%emt 0:10:33]} (13... h6 $11) 14. e5 $18 {[%emt 0:04:30]} Ne4 {[%emt 0:00:58]} (14... Ng8 $16 {is a better defense.}) 15. Bxe4 {[%emt 0:02:56]} ({Not} 15. Nxe4 dxe4 16. Bxe4 Qxe5 $14) 15... dxe4 {[%emt 0:00:12] [#]} 16. Qd6 {[%emt 0:01:03]} ({Don't do} 16. Nxe4 $6 Qxe5 17. Qd3 Rb8 $16) ({White should play} 16. Qh5 $1 $18) 16... Qxd6 $16 {[%emt 0:02:51]} 17. exd6 {[%emt 0:00:11]} f5 {[%emt 0:00:27] [#]} 18. Na4 $1 {[%emt 0:03:05] White is more active.} O-O {[%emt 0:10:57]} 19. Nb6 $36 {[%emt 0:04:58][%mdl 2048] White is really pushing.} Ra7 {[%emt 0:02:46]} 20. c4 {[%emt 0:02:32][%cal Bc2c4,Bc4c5][%mdl 32]} c5 {[%emt 0:08:03]} (20... g6 {keeps fighting.} 21. c5 e5) 21. b4 $18 {[%emt 0:01:43]} cxb4 {[%emt 0:05:54]} 22. axb4 {[%emt 0:00:11]} Rb8 {[%emt 0:01:12]} 23. c5 {[%emt 0:01:17]} Bb5 {[%emt 0:01:59]} 24. Kd2 {[%emt 0:02:49]} (24. f3 $18) 24... h6 $2 {[%emt 0:00:59] This costs Black the game.} (24... Rxb6 $1 $14 25. cxb6 Rd7) 25. Rhd1 {[%emt 0:03:09]} Kf7 {[%emt 0:01:05]} 26. Kc3 {[%emt 0:03:42]} Rab7 {[%emt 0:06:36]} 27. Kb3 {[%emt 0:05:46]} Rd8 $2 {[%emt 0:04:30]} (27... Ke8 {might work better.} 28. d7+ Ke7) 28. Nc4 {[%emt 0:06:46][%cal Oc5c6] And now c6! would win.} Kf6 {[%emt 0:03:42]} 29. Na5 {[%emt 0:03:12]} Rbd7 {[%emt 0:00:38]} 30. Rd2 {[%emt 0:05:15]} e5 {[%emt 0:03:30]} 31. Nc4 {[%emt 0:01:44]} Ke6 {[%emt 0:01:27]} 32. Nb6 {[%emt 0:00:26]} Ra7 {[%emt 0:03:05]} 33. Nd5 {[%emt 0:01:45]} Kd7 {[%emt 0:05:57]} 34. Nc7 {[%emt 0:03:05]} Bd3 {[%emt 0:06:08]} 35. Rda2 {[%emt 0:02:07]} (35. b5 $142) 35... f4 $2 {[%emt 0:02:29]} (35... Rxc7 36. dxc7 Kxc7) 36. gxf4 {[%emt 0:03:27]} exf4 {[%emt 0:00:15]} 37. Kc3 {[%emt 0:03:06]} (37. Nxa6 $142 {[%cal Oa6b8] Strongly threatening Nb8+!} Rb7 38. Nc7) 37... g5 $2 {[%emt 0:02:06]} (37... Rxc7 38. dxc7 Kxc7) 38. b5 {[%emt 0:03:09]} Rh8 {[%emt 0:03:45]} 39. Rxa6 {[%emt 0:01:51]} Rxc7 {[%emt 0:03:14]} 40. dxc7 {[%emt 0:01:31] White threatens Rd6+ and mate.} Bxb5 {[%emt 0:00:10][%mdl 4096] Endgame KRR-KRB} 41. Rd6+ {[%emt 0:33:44]} Kxc7 {[%emt 0:30:26]} 42. Ra7+ {[%emt 0:00:17]} Kb8 {[%emt 0:00:32]} 43. Rg7 {[%emt 0:01:56] White wants to mate with Rb6+.} Bf1 {[%emt 0:01:46]} 44. Rb6+ {[%emt 0:00:31]} Ka8 {[%emt 0:00:18]} 45. Rbb7 {[%emt 0:00:49]} e3 {[%emt 0:00:00]} 46. Ra7+ {[%emt 0:00:00]} Kb8 {[%emt 0:00:00]} 47. Rgb7+ {[%emt 0:00:00]} Kc8 {[%emt 0:00:00]} 48. c6 {[%emt 0:00:00][%cal Ra7a8]} Bxg2 {[%emt 0:00:00]} 49. Ra8# {Weighted Error Value: White=0.34/Black=0.63} 1-0

[Event "GER-chT States Women 2022"]
[Site "Braunfels"]
[Date "2022.06.16"]
[Round "1.29"]
[White "Frank, Michelle Viviane"]
[Black "Albayrak, Berrak"]
[Result "1-0"]
[ECO "E73"]
[WhiteElo "1882"]
[BlackElo "1569"]
[Annotator "NA RC COMBH"]
[PlyCount "67"]
[EventDate "2022.06.15"]
[EventType "swiss"]
[EventCountry "GER"]
[SourceTitle "playchess.com"]
[Source "ChessBase"]
[SourceQuality "1"]
[TimeControl "40/5400+30:1800+30"]

1. d4 {[%emt 0:00:09]} Nf6 {[%emt 0:00:14]} 2. c4 {[%emt 0:00:15]} g6 {[%emt 0:00:07]} 3. Nc3 {[%emt 0:00:16]} Bg7 {[%emt 0:00:14]} 4. e4 {[%emt 0:00:06]} d6 {[%emt 0:00:04]} 5. Be2 {[%emt 0:00:14]} O-O {[%emt 0:00:15]} 6. f4 {[%emt 0:00:07]} e5 {[%emt 0:24:35]} 7. fxe5 {[%emt 0:00:30]} dxe5 {[%emt 0:00:28]} 8. d5 {[%emt 0:00:05]} a5 {[%emt 0:18:52]} 9. Nf3 {[%emt 0:06:57]} Nfd7 {[%emt 0:18:31]} 10. O-O Na6 {[%emt 0:02:05]} 11. Bg5 {[%emt 0:06:56]} f6 {[%emt 0:01:43]} 12. Be3 {[%emt 0:01:06]} Nac5 {[%emt 0:02:36]} 13. Nd2 {[%emt 0:01:58]} f5 {[%emt 0:04:35]} 14. Nb3 {[%emt 0:06:36]} Nxb3 {[%emt 0:05:26]} 15. axb3 {[%emt 0:03:36]} f4 {[%emt 0:02:54]} 16. Bf2 {[%emt 0:00:23]} g5 {[%emt 0:02:50]} 17. b4 {[%emt 0:00:50]} c6 {[%emt 0:01:52]} 18. d6 {[%emt 0:02:39]} b6 {[%emt 0:02:10]} 19. b5 {[%emt 0:01:51]} Bb7 {[%emt 0:02:52]} 20. bxc6 {[%emt 0:00:17]} Bxc6 {[%emt 0:00:05]} 21. Nd5 {[%emt 0:00:05]} Bxd5 {[%emt 0:02:52]} 22. Qxd5+ {[%emt 0:03:41]} Kh8 {[%emt 0:00:13]} 23. Qb5 {[%emt 0:00:33]} Rc8 {[%emt 0:02:10]} 24. Bg4 {[%emt 0:00:32]} Rf7 {[%emt 0:03:11]} 25. Be6 {[%emt 0:00:15]} Qe8 {[%emt 0:01:18]} 26. Bxf7 {[%emt 0:01:01]} Qxf7 {[%emt 0:00:03]} 27. Bxb6 {[%emt 0:03:49]} Rxc4 {[%emt 0:00:52]} 28. Bxa5 {[%emt 0:02:38]} Rxe4 {[%emt 0:00:37]} 29. Rac1 {[%emt 0:00:24]} Rd4 {[%emt 0:00:36]} 30. Bb4 {[%emt 0:00:49]} Rd5 {[%emt 0:00:34]} 31. Qb7 {[%emt 0:00:19]} e4 {[%emt 0:00:30]} 32. Rc8+ {[%emt 0:00:23]} Bf8 {[%emt 0:00:18]} 33. Rxf8+ {[%emt 0:00:22]} Qxf8 {[%emt 0:00:19]} 34. Qxd5 {[%emt 0:00:05]} 1-0

[Event "GER-chT States Women 2022"]
[Site "Braunfels"]
[Date "2022.06.16"]
[Round "1.30"]
[White "Schilay, Maria"]
[Black "Werner, Rosalie"]
[Result "0-1"]
[ECO "C06"]
[WhiteElo "1568"]
[BlackElo "1712"]
[Annotator "NA RC COMBH"]
[PlyCount "54"]
[EventDate "2022.06.15"]
[EventType "swiss"]
[EventCountry "GER"]
[SourceTitle "playchess.com"]
[Source "ChessBase"]
[SourceQuality "1"]
[TimeControl "40/5400+30:1800+30"]

1. e4 {[%emt 0:00:05]} e6 2. d4 {[%emt 0:00:15]} d5 {[%emt 0:00:13]} 3. Nd2 {[%emt 0:00:18]} Nf6 4. e5 {[%emt 0:00:22]} Nfd7 {[%emt 0:00:15]} 5. Bd3 {[%emt 0:00:30]} c5 {[%emt 0:00:07]} 6. c3 {[%emt 0:00:34]} Nc6 {[%emt 0:00:07]} 7. Ne2 {[%emt 0:00:18]} cxd4 {[%emt 0:00:11]} 8. cxd4 {[%emt 0:00:16]} f6 {[%emt 0:00:07]} 9. exf6 {[%emt 0:01:16]} Nxf6 {[%emt 0:00:08]} 10. Nf3 {[%emt 0:00:55]} Bd6 {[%emt 0:00:09]} 11. Bf4 {[%emt 0:02:42]} Bxf4 {[%emt 0:04:23]} 12. Nxf4 {[%emt 0:00:23]} Qa5+ {[%emt 0:00:47]} 13. Qd2 {[%emt 0:13:23]} Qxd2+ {[%emt 0:00:41]} 14. Kxd2 {[%emt 0:00:12]} O-O {[%emt 0:00:21]} 15. Rhe1 {[%emt 0:01:54]} Ne4+ {[%emt 0:03:36]} 16. Ke3 {[%emt 0:20:00]} Nxf2 {[%emt 0:05:51]} 17. g3 {[%emt 0:01:01]} Nxd3 {[%emt 0:08:01]} 18. Kxd3 {[%emt 0:01:18]} h6 {[%emt 0:09:35]} 19. Nd2 {[%emt 0:13:02]} Rf6 {[%emt 0:08:44]} 20. Re2 {[%emt 0:10:40]} Kf7 {[%emt 0:08:26]} 21. a3 {[%emt 0:06:13]} b6 {[%emt 0:13:35]} 22. Kc3 {[%emt 0:04:47]} Ba6 {[%emt 0:01:38]} 23. Re3 {[%emt 0:03:24]} Rc8 {[%emt 0:02:48]} 24. Nb3 {[%emt 0:03:41]} Na5+ {[%emt 0:02:40]} 25. Kd2 {[%emt 0:01:32]} Nc4+ {[%emt 0:00:10]} 26. Ke2 {[%emt 0:01:30]} Nxe3+ {[%emt 0:00:50]} 27. Kxe3 {[%emt 0:00:17]} Rc2 {[%emt 0:01:39]} 0-1

[Event "GER-chT States Women 2022"]
[Site "Braunfels"]
[Date "2022.06.16"]
[Round "1.31"]
[White "Krausse, Vanessa"]
[Black "Albayrak, Aylin"]
[Result "1/2-1/2"]
[ECO "B56"]
[WhiteElo "1632"]
[BlackElo "1671"]
[Annotator "NA RC COMBH"]
[PlyCount "78"]
[EventDate "2022.06.15"]
[EventType "swiss"]
[EventCountry "GER"]
[SourceTitle "playchess.com"]
[Source "ChessBase"]
[SourceQuality "1"]
[TimeControl "40/5400+30:1800+30"]

1. e4 {[%emt 0:00:07]} c5 {[%emt 0:00:06]} 2. Nf3 {[%emt 0:01:46]} Nc6 {[%emt 0:00:08]} 3. d4 {[%emt 0:00:37]} cxd4 {[%emt 0:00:21]} 4. Nxd4 {[%emt 0:00:17]} Nf6 {[%emt 0:00:12]} 5. Nc3 {[%emt 0:00:25]} d6 {[%emt 0:00:21]} 6. Be3 {[%emt 0:01:04]} Ng4 {[%emt 0:00:54]} 7. Bc1 {[%emt 0:01:58]} Nxd4 {[%emt 0:02:41]} 8. Qxd4 {[%emt 0:00:46]} e5 {[%emt 0:00:38]} 9. Bb5+ {[%emt 0:07:53]} Bd7 {[%emt 0:02:01]} 10. Bxd7+ {[%emt 0:00:13]} Qxd7 {[%emt 0:00:17]} 11. Qd1 {[%emt 0:01:45]} Be7 {[%emt 0:02:20]} 12. f3 {[%emt 0:06:06]} Nf6 {[%emt 0:01:49]} 13. Be3 {[%emt 0:03:05]} O-O {[%emt 0:01:38]} 14. g4 {[%emt 0:04:41]} a6 {[%emt 0:01:55]} 15. h4 {[%emt 0:02:04]} b5 {[%emt 0:03:23]} 16. g5 {[%emt 0:01:24]} Nh5 {[%emt 0:01:42]} 17. Nd5 {[%emt 0:00:35]} Bd8 {[%emt 0:02:09]} 18. f4 {[%emt 0:05:00]} Ng3 {[%emt 0:03:17]} 19. Rg1 {[%emt 0:11:36]} Nxe4 {[%emt 0:05:33]} 20. fxe5 {[%emt 0:06:15]} Qh3 {[%emt 0:05:39]} 21. Qg4 {[%emt 0:04:45]} Qxg4 {[%emt 0:06:16]} 22. Rxg4 {[%emt 0:00:15]} Nc5 {[%emt 0:00:21]} 23. exd6 {[%emt 0:02:20]} Re8 {[%emt 0:00:53]} 24. O-O-O {[%emt 0:02:32]} Nd7 {[%emt 0:01:31]} 25. Rgd4 {[%emt 0:04:13]} Rc8 {[%emt 0:03:26]} 26. Ne7+ {[%emt 0:02:10]} Bxe7 {[%emt 0:05:41]} 27. dxe7 {[%emt 0:00:19]} Rxe7 {[%emt 0:03:18]} 28. Rxd7 {[%emt 0:00:29]} Rxe3 {[%emt 0:00:11]} 29. Rd8+ {[%emt 0:00:10]} Re8 {[%emt 0:00:07]} 30. Rxc8 {[%emt 0:01:44]} Rxc8 {[%emt 0:00:14]} 31. Rd6 Ra8 32. Kd2 Kf8 33. Kc3 Ke7 34. Rb6 Kd7 35. Kb4 Rc8 36. Rd6+ Ke7 37. Rb6 Kd7 38. c3 Rc4+ 39. Ka5 Ra4# 1/2-1/2

[Event "GER-chT States Women 2022"]
[Site "Braunfels"]
[Date "2022.06.16"]
[Round "1.32"]
[White "Alferova, Emily"]
[Black "Engel, Esther"]
[Result "1/2-1/2"]
[ECO "C01"]
[WhiteElo "1536"]
[BlackElo "1751"]
[Annotator "NA RC COMBH"]
[PlyCount "75"]
[EventDate "2022.06.15"]
[EventType "swiss"]
[EventCountry "GER"]
[SourceTitle "playchess.com"]
[Source "ChessBase"]
[SourceQuality "1"]
[TimeControl "40/5400+30:1800+30"]

1. e4 {[%emt 0:00:06]} e6 {[%emt 0:00:07]} 2. d4 {[%emt 0:00:04]} d5 {[%emt 0:00:07]} 3. exd5 {[%emt 0:00:06]} exd5 {[%emt 0:00:15]} 4. Bd3 {[%emt 0:00:05]} Bd6 {[%emt 0:00:57]} 5. Qf3 {[%emt 0:00:08]} c6 {[%emt 0:02:57]} 6. Ne2 {[%emt 0:03:26]} Nf6 {[%emt 0:08:37]} 7. h3 {[%emt 0:01:14]} h6 {[%emt 0:02:24]} 8. c3 {[%emt 0:01:09]} O-O {[%emt 0:01:09]} 9. O-O {[%emt 0:01:26]} Nbd7 {[%emt 0:03:21]} 10. Bf4 {[%emt 0:06:48]} Qc7 {[%emt 0:04:37]} 11. Nd2 {[%emt 0:06:23]} Re8 {[%emt 0:02:06]} 12. Bxd6 {[%emt 0:01:01]} Qxd6 {[%emt 0:00:10]} 13. Ng3 {[%emt 0:03:48]} Nf8 {[%emt 0:06:00]} 14. Rfe1 {[%emt 0:06:44]} Bd7 {[%emt 0:00:26]} 15. Bf5 {[%emt 0:03:14]} Ne6 {[%emt 0:06:07]} 16. Bxe6 {[%emt 0:12:14]} Bxe6 {[%emt 0:00:49]} 17. Re2 {[%emt 0:05:16]} Bd7 {[%emt 0:00:17]} 18. Rae1 {[%emt 0:01:19]} Rxe2 {[%emt 0:00:41]} 19. Rxe2 {[%emt 0:00:07]} Re8 {[%emt 0:00:24]} 20. Rxe8+ {[%emt 0:02:37]} Nxe8 {[%emt 0:00:18]} 21. Qe3 {[%emt 0:04:20]} Nf6 {[%emt 0:03:17]} 22. Nf3 {[%emt 0:03:05]} Be6 {[%emt 0:03:36]} 23. Nh4 {[%emt 0:03:58]} Kf8 {[%emt 0:08:26]} 24. Nhf5 {[%emt 0:01:31]} Bxf5 {[%emt 0:00:24]} 25. Nxf5 {[%emt 0:00:06]} Qe6 {[%emt 0:06:14]} 26. Qxe6 {[%emt 0:01:10]} fxe6 {[%emt 0:01:00]} 27. Nd6 {[%emt 0:01:45]} b5 {[%emt 0:02:58]} 28. Nb7 {[%emt 0:05:30]} Ke7 {[%emt 0:04:10]} 29. Nc5 {[%emt 0:02:02]} Kd6 {[%emt 0:00:30]} 30. Kf1 {[%emt 0:04:26]} g5 {[%emt 0:02:59]} 31. Ke2 {[%emt 0:02:49]} Nh5 {[%emt 0:02:37]} 32. g3 {[%emt 0:01:22]} e5 {[%emt 0:05:21]} 33. Ke3 {[%emt 0:01:44]} e4 {[%emt 0:00:48]} 34. b4 {[%emt 0:00:50]} Ng7 {[%emt 0:01:39]} 35. g4 {[%emt 0:01:14]} Ne8 {[%emt 0:03:12]} 36. f3 {[%emt 0:01:43]} exf3 {[%emt 0:00:23]} 37. Kxf3 {[%emt 0:00:04]} Nf6 {[%emt 0:01:16]} 38. Ke3 1/2-1/2